Department family,Entity,Date,Expense type,Expense area,Supplier,Transaction number,Amount,Description
MOJ,YJB,02/07/2013,Information Technology softwar,Corporate Services Division,SoftCat,PI1311/082,"35,631.79",Information Technology software
MOJ,YJB,02/07/2013,Information Technology support,Corporate Services Division,MoJ,PI1311/052,"38,160.00",Information Technology support
MOJ,YJB,02/07/2013,MoJ ICT Recharge,Corporate Services Division,MoJ,PI1311/046,"40,105.67",MoJ ICT Recharge
MOJ,YJB,02/07/2013,MoJ ICT Recharge,Corporate Services Division,MoJ,PI1310/184,"40,325.64",MoJ ICT Recharge
MOJ,YJB,02/07/2013,MoJ ICT Recharge,Corporate Services Division,MoJ,PI1310/183,"40,333.34",MoJ ICT Recharge
MOJ,YJB,02/07/2013,MoJ ICT Recharge,Corporate Services Division,MoJ,PI1310/183,"40,333.34",MoJ ICT Recharge
MOJ,YJB,02/07/2013,MoJ ICT Recharge,Corporate Services Division,MoJ,PI1310/183,"40,333.34",MoJ ICT Recharge
MOJ,YJB,02/07/2013,Secure Escorts Basic,Secure Accommodation Division,Serco,PI1310/154,"61,146.00",Secure Escorts Basic
MOJ,YJB,02/07/2013,Prison Service -Capital Grant,Secure Accommodation Division,HMPS,PI1310/402,"68,160.49",Prison Service -Capital Grant
MOJ,YJB,02/07/2013,Secure Escorts Basic,Secure Accommodation Division,Serco Limited,PI1310/153,"72,459.60",Secure Escorts Basic
MOJ,YJB,02/07/2013,MoJ ICT Recharge,Corporate Services Division,MoJ,PI1311/046,"77,764.77",MoJ ICT Recharge
MOJ,YJB,02/07/2013,Secure Childrens Homes - Basic Sentenced,Secure Accommodation Division,Lincs CC,PI1310/292,"160,883.80",Secure Childrens Homes - Basic Sentenced
MOJ,YJB,02/07/2013,ICT Change Programmes,Community Division,i2N,PI1311/044,"175,200.00",ICT Change Programmes - Youth to Adult
MOJ,YJB,02/07/2013,ICT Change Programmes,Effective Practice Division,UNITAS,PI1311/057,"175,850.00",ICT Change Programmes - Youth to Adult
MOJ,YJB,02/07/2013,Secure Escorts Basic,Secure Accommodation Division,Serco,PI1310/418,"196,476.35",Secure Escorts Basic
MOJ,YJB,02/07/2013,Prison Service -Capital Grant,Secure Accommodation Division,HMPS,PI1310/403,"206,388.24",Prison Service -Capital Grant
MOJ,YJB,02/07/2013,Secure Childrens Homes - Basic Sentenced,Secure Accommodation Division,Neath PT,PI1310/371,"302,498.00",Secure Childrens Homes - Basic Sentenced
MOJ,YJB,02/07/2013,ICT Change Programmes,Community Division,Alpine,PI1310/377,"361,736.00",ICT Change Programmes - Asset Assessment
MOJ,YJB,13/02/2013,Grant,Effective Practice Division,Leeds CC,PI1311/167,"25,000.00",Grant payable for development
MOJ,YJB,13/02/2013,Grant,Effective Practice Division,Hants CC,PI1311/169,"25,000.00",Grant payable for development
MOJ,YJB,13/02/2013,Grant,Secure Accommodation Division,Westminster,PI1310/416,"33,750.00",Grant payable for development
MOJ,YJB,13/02/2013,Grant,Community Division,Ceredigion CC,PI1311/009,"83,938.50",Grant payable for development
MOJ,YJB,13/02/2013,Grant,Effective Practice Division,CYT,PI1311/113,"102,500.00",Grant payable for development
MOJ,YJB,13/02/2013,Grant,Community Division,Glamorgan,PI1311/041,"112,574.50",Grant payable for development
MOJ,YJB,13/02/2013,Grant,Community Division,Pembrokeshire CC,PI1311/028,"125,759.50",Grant payable for development
MOJ,YJB,13/02/2013,Grant,Community Division,Sutton CC,PI1311/036,"131,723.00",Grant payable for development
MOJ,YJB,13/02/2013,Grant,Community Division,Portsmouth CC,PI1311/163,"135,324.50",Grant payable for development
MOJ,YJB,13/02/2013,Grant,Community Division,LB Merton,PI1311/023,"144,722.50",Grant payable for development
MOJ,YJB,13/02/2013,Grant,Community Division,Bridgend CC,PI1311/006,"152,056.99",Grant payable for development
MOJ,YJB,13/02/2013,Grant,Community Division,LB Harrow,PI1311/014,"153,641.00",Grant payable for development
MOJ,YJB,13/02/2013,Grant,Community Division,Swindon CC,PI1311/038,"163,125.50",Grant payable for development
MOJ,YJB,13/02/2013,Grant,Community Division,Soufend CC,PI1311/034,"169,613.50",Grant payable for development
MOJ,YJB,13/02/2013,Grant,Community Division,Torfaen CC,PI1311/024,"173,380.08",Grant payable for development
MOJ,YJB,13/02/2013,Grant,Community Division,RB Kens & Chelsea,PI1311/018,"180,912.00",Grant payable for development
MOJ,YJB,13/02/2013,Grant,Community Division,Reading CC,PI1311/029,"194,718.50",Grant payable for development
MOJ,YJB,13/02/2013,Grant,Community Division,Wrexham CC,PI1311/043,"202,513.00",Grant payable for development
MOJ,YJB,13/02/2013,Grant,Community Division,Conwy CC,PI1311/011,"209,600.50",Grant payable for development
MOJ,YJB,13/02/2013,Grant,Community Division,Bury CC,PI1311/008,"212,940.50",Grant payable for development
MOJ,YJB,13/02/2013,Grant,Community Division,Medway CC,PI1311/022,"217,080.00",Grant payable for development
MOJ,YJB,13/02/2013,Grant,Community Division,LB Westminster,PI1311/042,"229,437.50",Grant payable for development
MOJ,YJB,13/02/2013,Grant,Community Division,LB Hounslow,PI1311/016,"237,976.00",Grant payable for development
MOJ,YJB,13/02/2013,Grant,Community Division,Blackpool CC,PI1311/004,"257,865.50",Grant payable for development
MOJ,YJB,13/02/2013,Grant,Community Division,Bedford CC,PI1311/002,"265,006.00",Grant payable for development
MOJ,YJB,13/02/2013,Grant,Community Division,Sefton CC,PI1311/033,"266,891.90",Grant payable for development
MOJ,YJB,13/02/2013,Grant,Community Division,Luton CC,PI1311/021,"269,098.50",Grant payable for development
MOJ,YJB,13/02/2013,Grant,Community Division,N Tyneside CC,PI1311/025,"270,155.50",Grant payable for development
MOJ,YJB,13/02/2013,Grant,Community Division,Stockton-on-Tees CC,PI1311/165,"291,157.00",Grant payable for development
MOJ,YJB,13/02/2013,Grant,Community Division,Swansea CC,PI1311/037,"302,202.00",Grant payable for development
MOJ,YJB,13/02/2013,Grant,Community Division,Cynon Taff,PI1311/030,"309,097.00",Grant payable for development
MOJ,YJB,13/02/2013,Grant,Community Division,LB Islington,PI1311/017,"309,774.50",Grant payable for development
MOJ,YJB,13/02/2013,Grant,Community Division,Barnsley CC,PI1311/001,"326,606.00",Grant payable for development
MOJ,YJB,13/02/2013,Grant,Community Division,Wolves CC,PI1311/166,"344,302.50",Grant payable for development
MOJ,YJB,13/02/2013,Grant,Community Division,LB Tower Hamlets,PI1311/040,"348,361.50",Grant payable for development
MOJ,YJB,13/02/2013,Grant,Community Division,Tameside CC,PI1311/039,"361,689.00",Grant payable for development
MOJ,YJB,13/02/2013,Grant,Community Division,Rochdale CC,PI1311/031,"384,253.50",Grant payable for development
MOJ,YJB,13/02/2013,Grant,Community Division,Northumberland CC,PI1311/026,"399,256.00",Grant payable for development
MOJ,YJB,13/02/2013,Grant,Community Division,Kirklees CC,PI1311/019,"399,869.00",Grant payable for development
MOJ,YJB,13/02/2013,Grant,Community Division,Salford CC,PI1311/032,"403,296.50",Grant payable for development
MOJ,YJB,13/02/2013,Grant,Community Division,Bolton CC,PI1311/005,"407,987.50",Grant payable for development
MOJ,YJB,13/02/2013,Grant,Community Division,LB Lambeth,PI1311/020,"418,341.00",Grant payable for development
MOJ,YJB,13/02/2013,Grant,Community Division,Bristol CC,PI1311/007,"454,359.50",Grant payable for development
MOJ,YJB,13/02/2013,Grant,Community Division,Devon CC,PI1311/012,"502,470.00",Grant payable for development
MOJ,YJB,13/02/2013,Grant,Community Division,Suffolk CC,PI1311/035,"525,191.00",Grant payable for development
MOJ,YJB,13/02/2013,Grant,Community Division,Herts CC,PI1311/015,"533,124.50",Grant payable for development
MOJ,YJB,13/02/2013,Grant,Community Division,Cheshire CC,PI1311/010,"536,780.78",Grant payable for development
MOJ,YJB,13/02/2013,Grant,Community Division,Nottingham City Council,PI1311/161,"595,077.50",Grant payable for development
MOJ,YJB,13/02/2013,Grant,Community Division,Peterborough CC,PI1311/162,"680,648.00",Grant payable for development
MOJ,YJB,13/02/2013,Grant,Community Division,Notts CC,PI1311/027,"717,788.00",Grant payable for development
MOJ,YJB,13/02/2013,Grant,Community Division,Essex CC,PI1311/013,"772,850.00",Grant payable for development
MOJ,YJB,13/02/2013,Grant,Community Division,Birmingham CC,PI1311/003,"1,421,286.00",Grant payable for development
MOJ,YJB,20/02/2013,Youth Advocacy Services Secure,Secure Accommodation Division,Barnardo's,PI1311/128,"26,685.50",Youth Advocacy Services Secure
MOJ,YJB,20/02/2013,Staff salaries,Community Division,GMP,PI1311/154,"30,279.69",Staff salaries
MOJ,YJB,20/02/2013,MoJ ICT Recharge,Corporate Services Division,MoJ,PI1310/185,"31,739.02",MoJ ICT Recharge
MOJ,YJB,20/02/2013,Information Technology software,Corporate Services Division,Fujitsu Limited,PI1310/199,"34,443.60",Information Technology software
MOJ,YJB,20/02/2013,Youth Advocacy Services Secure,Secure Accommodation Division,Barnardo's,PI1311/127,"34,610.49",Youth Advocacy Services Secure
MOJ,YJB,20/02/2013,MoJ ICT Recharge,Community Division,MoJ,PI1311/048,"35,743.03",Change Programmes Youth to Adult
MOJ,YJB,20/02/2013,Secure Childrens Homes - Basic Sentenced,Secure Accommodation Division,Durham CC,PI1311/177,"41,216.00",Secure Childrens Homes - Basic Sentenced
MOJ,YJB,20/02/2013,Information Technology support,Corporate Services Division,MoJ,PI1311/048,"41,738.11",Information Technology support
MOJ,YJB,20/02/2013,Youth Advocacy Services Secure,Secure Accommodation Division,Voice for the child in care,PI1311/173,"43,508.57",Youth Advocacy Services Secure
MOJ,YJB,20/02/2013,Secure Childrens Homes - Basic Sentenced,Secure Accommodation Division,Durham CC,PI1311/174,"46,796.97",Secure Childrens Homes - Basic Sentenced
MOJ,YJB,20/02/2013,Service Delivery Programme Exp,Secure Accommodation Division,Lucy Faithfull,PI1311/126,"50,000.00",Service Delivery Programme Exp
MOJ,YJB,20/02/2013,MoJ ICT Recharge,Corporate Services Division,MoJ,PI1311/048,"57,806.32",MoJ ICT Recharge
MOJ,YJB,20/02/2013,MoJ ICT Recharge,Corporate Services Division,MoJ,PI1311/048,"70,701.06",MoJ ICT Recharge
MOJ,YJB,20/02/2013,MoJ ICT Recharge,Corporate Services Division,MoJ,PI1311/048,"70,701.06",MoJ ICT Recharge
MOJ,YJB,20/02/2013,Secure Childrens Homes - Basic Sentenced,Secure Accommodation Division,Sheffield CC,PI1311/093,"72,248.60",Secure Childrens Homes - Basic Sentenced
MOJ,YJB,20/02/2013,Secure Childrens Homes - Basic Sentenced,Secure Accommodation Division,Durham CC,PI1311/176,"79,856.00",Secure Childrens Homes - Basic Sentenced
MOJ,YJB,20/02/2013,ICT Software,Corporate Services Division,CareWorkers,PI13/1/176,"89,022.60",ICT Software
MOJ,YJB,20/02/2013,MoJ ICT Recharge,Corporate Services Division,MoJ,PI1310/185,"94,914.91",MoJ ICT Recharge
MOJ,YJB,20/02/2013,Information Technology support,Corporate Services Division,MoJ,PI1311/047,"117,445.77",Information Technology support
MOJ,YJB,20/02/2013,Secure Childrens Homes - Basic Sentenced,Secure Accommodation Division,Lincs CC,PI1311/155,"152,172.35",Secure Childrens Homes - Basic Sentenced
MOJ,YJB,20/02/2013,MoJ ICT Recharge,Corporate Services Division,MoJ,PI1310/185,"200,591.33",MoJ ICT Recharge
MOJ,YJB,20/02/2013,Secure Childrens Homes - Basic Sentenced,Secure Accommodation Division,Durham CC,PI1311/175,"287,868.00",Secure Childrens Homes - Basic Sentenced
MOJ,YJB,20/02/2013,MoJ ICT Recharge,Corporate Services Division,MoJ,PI1311/047,"288,856.69",MoJ ICT Recharge
MOJ,YJB,20/02/2013,Secure Childrens Homes - Basic Sentenced,Secure Accommodation Division,Neath PT CBC,PI1311/132,"299,628.05",Secure Childrens Homes - Basic Sentenced
MOJ,YJB,20/02/2013,Secure Childrens Homes - Basic Sentenced,Secure Accommodation Division,S Gloucs CC,PI1311/125,"318,600.00",Secure Childrens Homes - Basic Sentenced
MOJ,YJB,20/02/2013,Secure Childrens Homes - Basic Sentenced,Secure Accommodation Division,Salford CC,PI1310/439,"323,575.45",Secure Childrens Homes - Basic Sentenced
MOJ,YJB,20/02/2013,Secure Childrens Homes - Basic Sentenced,Secure Accommodation Division,Leeds CC,PI1311/092,"419,059.34",Secure Childrens Homes - Basic Sentenced
MOJ,YJB,21/02/2013,Service Delivery Programme Exp,Secure Accommodation Division,HMPS,PI1311/134,"60,000.00",Service Delivery Programme Exp
MOJ,YJB,21/02/2013,Social Workers,Secure Accommodation Division,HMPS,PI1311/134,"68,350.00",Social Workers
MOJ,YJB,21/02/2013,HMPS Capital charges,Secure Accommodation Division,HMPS,PI1311/181,"143,376.22",HMPS Capital charges
MOJ,YJB,21/02/2013,Secure Training Centre - Basic Contract,Secure Accommodation Division,STC Milton Keynes,PI1311/098,"1,643,296.24",Secure Training Centre - Basic Contract
MOJ,YJB,21/02/2013,HM Prison Service-Basic Cont,Secure Accommodation Division,HMPS,PI1311/134,"6,713,345.75",HM Prison Service-Basic Cont
MOJ,YJB,26/02/2013,ICT Change Programmes,Community Division,Alpine,PI1311/225,"96,000.00",ICT Change Programmes - Asset Assessment
MOJ,YJB,26/02/2013,Secure Childrens Homes - Basic Sentenced,Secure Accommodation Division,Hants CC,PI1311/124,"197,046.00",Secure Childrens Homes - Basic Sentenced
MOJ,YJB,26/02/2013,Secure Childrens Homes - Basic Sentenced,Secure Accommodation Division,Nottingham CC,PI1311/123,"240,074.67",Secure Childrens Homes - Basic Sentenced
MOJ,YJB,26/02/2013,Secure Childrens Homes - Basic Sentenced,Secure Accommodation Division,Leeds CC,PI1311/207,"402,548.95",Secure Childrens Homes - Basic Sentenced
